fUST/lending_fUST_20250228
["ID","MTS","AMOUNT","RATE_DAILY","PERIOD"]
[354819268,1740715826071,-500.0,0.00055036,120]
[354819269,1740715826102,-500.0,0.00055036,120]
[354819270,1740715826132,-500.0,0.00055036,120]
[354819271,1740715826163,-500.0,0.00055036,120]
[354819272,1740715826195,-517.40187126,0.00055036,120]
[354819273,1740715826227,-500.0,0.00055036,120]
[354819274,1740715826261,-500.0,0.00055036,120]
[354819275,1740715826292,-500.0,0.00055036,120]
[354819276,1740715826323,-500.0,0.00055036,120]
[354819277,1740715826354,-500.0,0.00055036,120]
[354819278,1740715826384,-240.00369937,0.00055036,120]
[354819279,1740715826415,-501.31171972,0.00055036,120]
[354819280,1740715826449,-500.0,0.00055036,120]
[354819281,1740715826480,-500.0,0.00055036,120]
[354819282,1740715826510,-500.0,0.00055036,120]
[354819283,1740715826540,-500.0,0.00055036,120]
[354819284,1740715826571,-500.0,0.00055036,120]
[354819285,1740715826602,-500.0,0.00055036,120]
[354819286,1740715826632,-629.35593808,0.00055036,120]
[354819287,1740715826663,-500.0,0.00055036,120]
[354819288,1740715826701,-500.0,0.00055036,120]
[354819289,1740715826732,-500.0,0.00055036,120]
[354819290,1740715826764,-500.0,0.00055036,120]
[354819291,1740715826794,-500.0,0.00055036,120]
[354819292,1740715826825,-500.0,0.00055036,120]
[354819293,1740715826856,-500.0,0.00055036,120]
[354819294,1740715826887,-500.0,0.00055036,120]
[354819295,1740715826917,-500.0,0.00055036,120]
[354819296,1740715826950,-500.0,0.00055036,120]
[354819297,1740715826980,-500.0,0.00055036,120]
[354819298,1740715827010,-546.60157318,0.00055036,120]
[354819299,1740715827040,-500.0,0.00055036,120]
[354819300,1740715827070,-500.0,0.00055036,120]
[354819301,1740715827100,-500.0,0.00055036,120]
[354819302,1740715827131,-506.64755562,0.00055036,120]
[354819303,1740715827162,-500.0,0.00055036,120]
[354819304,1740715827199,-153.0,0.000569,120]
[354819305,1740715827233,-1017.0,0.0006,120]
[354819306,1740715827413,-153.0,0.000602,120]
[354819307,1740715827449,-1305.16,0.00060415,120]
[354819308,1740715827480,-500.0,0.00061397,120]
[354819309,1740715827511,-500.0,0.00063013,120]
[354819310,1740715827542,-153.0,0.000635,120]
[354819311,1740715827573,-202.33406095,0.00064899,120]
[354819312,1740715827603,-500.0,0.00064899,120]
[354819313,1740715827634,-524.58795968,0.00064899,120]
[354819314,1740715827665,-500.0,0.00064899,120]
[354819315,1740715827695,-500.0,0.00064899,120]
[354819316,1740715827723,-500.0,0.00064899,120]
[354819317,1740715827751,-192.44949542,0.00064899,120]
[354819318,1740715827784,-1305.16,0.00065894,120]
[354819319,1740715827816,-153.0,0.000668,120]
[354819320,1740715827847,-285.0,0.00067,120]
[354819321,1740715827877,-613.87279765,0.00068493,120]
[354819322,1740715827909,-613.87279765,0.00068493,120]
[354819323,1740715827944,-613.87279765,0.00068493,120]
[354819324,1740715827976,-613.87279765,0.00068493,120]
[354819325,1740715828007,-613.87279765,0.00068493,120]
[354819326,1740715828038,-613.87279765,0.00068493,120]
[354819327,1740715828070,-613.87279765,0.00068493,120]
[354819328,1740715828101,-613.87279765,0.00068493,120]
[354819329,1740715828136,-613.87279765,0.00068493,120]
[354819330,1740715828170,-613.87279765,0.00068493,120]
[354819331,1740715828204,-613.87279765,0.00068493,120]
[354819332,1740715828241,-613.87279765,0.00068493,120]
[354819333,1740715828274,-613.87279765,0.00068493,120]
[354819334,1740715828304,-613.87279765,0.00068493,120]
[354819335,1740715828339,-613.87279765,0.00068493,120]
[354819336,1740715828373,-613.87279765,0.00068493,120]
[354819337,1740715828404,-613.87279765,0.00068493,120]
[354819338,1740715828438,-613.87279765,0.00068493,120]
[354819339,1740715828474,-613.87279765,0.00068493,120]
[354819340,1740715828506,-613.87279765,0.00068493,120]
[354819341,1740715828536,-613.87279765,0.00068493,120]
[354819342,1740715828567,-613.87279765,0.00068493,120]
[354819343,1740715828598,-613.87279765,0.00068493,120]
[354819344,1740715828629,-613.87279765,0.00068493,120]
[354819345,1740715828659,-613.87279765,0.00068493,120]
[354819346,1740715828694,-613.87279765,0.00068493,120]
[354819347,1740715828727,-613.87279765,0.00068493,120]
[354819348,1740715828763,-613.87279765,0.00068493,120]
[354819349,1740715828796,-613.87279765,0.00068493,120]
[354819350,1740715828828,-613.87279765,0.00068493,120]
[354819351,1740715828861,-613.87279765,0.00068493,120]
[354819352,1740715828893,-613.87279765,0.00068493,120]
[354819353,1740715828924,-613.87279765,0.00068493,120]
[354819354,1740715828958,-613.87279765,0.00068493,120]
[354819355,1740715828988,-613.87279765,0.00068493,120]
[354819356,1740715829019,-613.87279765,0.00068493,120]
[354819357,1740715829048,-613.87279765,0.00068493,120]
[354819358,1740715829078,-613.87279765,0.00068493,120]
[354819359,1740715829106,-613.87279765,0.00068493,120]
[354819360,1740715829135,-613.87279765,0.00068493,120]
[354819361,1740715829165,-613.87279765,0.00068493,120]
[354819362,1740715829198,-613.87279765,0.00068493,120]
[354819363,1740715829229,-613.87279765,0.00068493,120]
[354819364,1740715829262,-613.87279765,0.00068493,120]
[354819365,1740715829292,-613.87279765,0.00068493,120]
[354819366,1740715829322,-613.87279765,0.00068493,120]
[354819367,1740715829352,-613.87279765,0.00068493,120]
[354819368,1740715829382,-613.87279765,0.00068493,120]
[354819369,1740715829412,-613.87279765,0.00068493,120]
[354819370,1740715829442,-613.87279765,0.00068493,120]
[354819371,1740715829473,-613.87279765,0.00068493,120]
[354819372,1740715829503,-613.87279765,0.00068493,120]
[354819373,1740715829532,-613.87279765,0.00068493,120]
[354819374,1740715829561,-613.87279765,0.00068493,120]
[354819375,1740715829590,-613.87279765,0.00068493,120]
[354819376,1740715829619,-613.87279765,0.00068493,120]
[354819377,1740715829648,-599.84141943,0.00068493,120]
[354819378,1740715829677,-599.84141943,0.00068493,120]
[354819379,1740715829708,-599.84141943,0.00068493,120]
[354819380,1740715829736,-599.84141943,0.00068493,120]
[354819381,1740715829765,-599.84141943,0.00068493,120]
[354819382,1740715829793,-599.84141943,0.00068493,120]
[354819383,1740715829827,-599.84141943,0.00068493,120]
[354819384,1740715829856,-599.84141943,0.00068493,120]
[354819385,1740715829885,-599.84141943,0.00068493,120]
[354819386,1740715829915,-599.84141943,0.00068493,120]
[354819387,1740715829946,-599.84141943,0.00068493,120]
[354819388,1740715829975,-599.84141943,0.00068493,120]
[354819389,1740715830005,-599.84141943,0.00068493,120]
[354819390,1740715830035,-599.84141943,0.00068493,120]
[354819391,1740715830065,-599.84141943,0.00068493,120]
[354819392,1740715830093,-599.84141943,0.00068493,120]
[354819393,1740715830124,-599.84141943,0.00068493,120]
[354819394,1740715830156,-599.84141943,0.00068493,120]
[354819395,1740715830186,-599.84141943,0.00068493,120]
[354819396,1740715830219,-599.84141943,0.00068493,120]
[354819397,1740715830255,-599.84141943,0.00068493,120]
[354819398,1740715830287,-599.84141943,0.00068493,120]
[354819399,1740715830318,-599.84141943,0.00068493,120]
[354819400,1740715830350,-599.84141943,0.00068493,120]
[354819401,1740715830381,-599.84141943,0.00068493,120]
[354819402,1740715830413,-599.84141943,0.00068493,120]
[354819403,1740715830450,-599.84141943,0.00068493,120]
[354819404,1740715830483,-599.84141942,0.00068493,120]
[354819405,1740715830514,-599.84141942,0.00068493,120]
[354819406,1740715830546,-599.84141942,0.00068493,120]
[354819407,1740715830578,-599.84141942,0.00068493,120]
[354819408,1740715830609,-599.84141942,0.00068493,120]
[354819409,1740715830640,-599.84141942,0.00068493,120]
[354819410,1740715830671,-599.84141942,0.00068493,120]
[354819411,1740715830703,-599.84141938,0.00068493,120]
[354819412,1740715830733,-500.0,0.00068493,120]
[354819413,1740715830763,-666.0,0.00068493,120]
[354819414,1740715830795,-200.0,0.0007,120]
[354819415,1740715831207,10000.0,0.00063,120]
[354819417,1740715831246,500.0,0.00054935,120]
[354819418,1740715831281,500.0,0.00054935,120]
[354819419,1740715831325,492.0,0.00055,120]
[354819427,1740715831484,500.0,0.00054935,120]
[354819432,1740715831523,500.0,0.00054935,120]
[354819444,1740715831591,492.0,0.00057,120]
[354819465,1740715831774,500.0,0.00054934,120]
[354819466,1740715831854,500.0,0.00054935,120]
[354819467,1740715831899,500.0,0.00054935,120]
[354819469,1740715831940,492.0,0.00059,120]
[354819471,1740715831980,500.0,0.00054935,120]
[354819472,1740715832024,500.0,0.00054935,120]
[354819476,1740715832069,500.0,0.00054935,120]
[354819482,1740715832116,492.0,0.00061,120]
[354819485,1740715832156,500.0,0.00054935,120]
[354819486,1740715832202,492.0,0.00063,120]
[354819487,1740715832345,500.0,0.00054935,120]
[354819488,1740715832380,506.43478893,0.00054935,120]
[354819489,1740715832432,500.0,0.00054934,120]
[354819490,1740715832541,492.0,0.00065,120]
[354819491,1740715832577,500.0,0.00054935,120]
[354819492,1740715832612,502.56023578,0.00054935,120]
[354819493,1740715832655,492.0,0.00067,120]
[354819494,1740715832812,500.0,0.00054935,120]
[354819495,1740715832983,500.0,0.00054935,120]
[354819496,1740715834350,500.0,0.00054935,120]
[354819497,1740715835365,1082.83,0.00054934,120]
[354819498,1740715835658,500.0,0.00054935,120]
[354819499,1740715835682,-336.22806512,0.000549,13]
[354819500,1740715835692,-408.23456922,0.00054926,10]
[354819501,1740715835910,-46.19543078,0.00054926,10]
[354819502,1740715835920,-1000.0,0.00054934,2]
[354819503,1740715835930,-500.0,0.00054934,21]
[354819504,1740715835940,-501.74640645,0.00054934,2]
[354819505,1740715835952,-500.0,0.00054934,2]
[354819507,1740715835962,-626.27947971,0.00054935,2]
[354819508,1740715835971,-499.99999999,0.00054935,2]
[354819509,1740715835981,-500.0,0.00054935,2]
[354819510,1740715835991,-500.0,0.00054935,2]
[354819511,1740715836001,-269.0,0.00054935,2]
[354819512,1740715836010,-500.0,0.00054935,30]
[354819513,1740715836020,-7536.68,0.00054935,7]
[354819514,1740715836029,-500.0,0.00054935,45]
[354819515,1740715836039,-500.0,0.00054935,30]
[354819516,1740715836048,-51539.18,0.00054935,7]
[354819517,1740715836058,-500.0,0.00054935,7]
[354819518,1740715836067,-103453.04327264,0.00054936,2]
[354819519,1740715836820,500.0,0.00054935,120]
[354819581,1740715838023,-8336.4,0.00054935,7]
[354819582,1740715838033,-6678.55574665,0.00054936,2]
[354819583,1740715838044,-1252.77339727,0.00054936,2]
[354819584,1740715838055,-1466.57000001,0.00054936,2]
[354819585,1740715838067,-43622.85582103,0.00054936,2]
[354819586,1740715838084,-46991.02981436,0.00054936,2]
[354819587,1740715838095,-1594.82,0.00054936,2]
[354819588,1740715838285,-1507.15752907,0.00054936,2]
[354819620,1740715840261,-500.0,0.00054935,120]
[354819622,1740715840271,-3985.48131557,0.00054936,2]
[354819624,1740715840285,-11447.7131034,0.00054936,2]
[354819626,1740715840296,-309.66004739,0.00054973,15]
[354819628,1740715840306,-197.13502618,0.00054973,7]
[354819630,1740715840315,-500.0,0.00054973,15]
[354819632,1740715840328,-500.0,0.00054973,15]
[354819634,1740715840337,-500.0,0.00054973,15]
[354819648,1740715840347,-162.32414988,0.00054973,3]
[354819651,1740715840477,-7983.64,0.00055,30]
[354819653,1740715840488,-171.24,0.00055,30]
[354819655,1740715840497,-301.53,0.00055,30]
[354819657,1740715840507,-154.97,0.00055,30]
[354819659,1740715840516,-432.41,0.00055,30]
[354819661,1740715840525,-164.51,0.00055,30]
[354819663,1740715840535,-500.0,0.00055035,2]
[354819665,1740715840544,-1247.36,0.00055035,15]
[354819667,1740715840554,-504.24527944,0.00055036,30]
[354819669,1740715840564,-500.0,0.00055036,14]
[354819671,1740715840573,-1000.0,0.00055036,20]
[354819673,1740715840582,-500.0,0.00055036,30]
[354819675,1740715840591,-500.0,0.00055073,15]
[354819676,1740715840600,-160.30186421,0.00055073,15]
[354819678,1740715840609,-516.30303863,0.00055073,15]
[354819680,1740715840618,-500.0,0.00055073,7]
[354819682,1740715840627,-500.0,0.00055073,7]
[354819684,1740715840636,-500.0,0.00055073,15]
[354819686,1740715840645,-500.0,0.00055073,15]
[354819688,1740715840654,-501.21019884,0.00055073,5]
[354819690,1740715840663,-500.0,0.00055073,14]
[354819692,1740715840672,-500.0,0.00055073,15]
[354819694,1740715840681,-500.0,0.00055073,15]
[354819696,1740715840691,-1000.0,0.00060552,7]
[354819698,1740715840700,-500.0,0.00064899,31]
[354819700,1740715840711,-182.61379229,0.00064899,31]
[354819701,1740715840720,-60248.3508508,0.000649,2]
[354819702,1740715840730,-5477.12280462,0.00068483,3]
[354819703,1740715840739,-666.0,0.00068493,2]
[354819704,1740715840747,-50152.08451095,0.000699,30]
[354819705,1740715840756,-500.0,0.00069973,15]
[354819706,1740715840765,-500.0,0.00069973,15]
[354819707,1740715840774,-500.0,0.00069973,15]
[354819708,1740715840783,-500.0,0.00069973,14]
[354819709,1740715840792,-500.4761298,0.00069973,15]
[354819710,1740715840802,-500.0,0.00069973,15]
[354819711,1740715840812,-500.0,0.00069973,15]
[354819712,1740715840821,-500.0,0.00069973,14]
[354819713,1740715840830,-500.0,0.00069973,7]
[354819714,1740715840839,-2209.6974047,0.0006999,4]
[354819788,1740715843468,-500.0,0.00054934,120]
[354819789,1740715843477,-2122.02329476,0.0006999,4]
[354819790,1740715843488,-6300.0,0.0006999,4]
[354819812,1740715846321,-500.0,0.00054934,120]
[354819813,1740715846331,-500.0,0.00054935,120]
[354819814,1740715846341,-500.0,0.00054935,120]
[354819815,1740715846350,-500.0,0.00054935,120]
[354819816,1740715846359,-14665.11543854,0.0006999,4]
[354819817,1740715846379,-7565.9006897,0.0006999,4]
[354819818,1740715846388,-1386.61,0.0006999,10]
[354819819,1740715846397,-82596.19602514,0.0007,30]
[354819820,1740715846408,-39131.88690409,0.0007,30]
[354819821,1740715846418,-121728.08292923,0.0007,30]
[354819822,1740715846427,-16557.26631381,0.0007,30]
[354819823,1740715846436,-175.28700473,0.00070061,2]
[354819824,1740715846446,-1500.0,0.00070571,7]
[354819825,1740715846456,-235.566011,0.00070726,30]
[354819826,1740715846465,-5477.12280462,0.0007099,4]
[354819827,1740715846475,-50000.0,0.00071,30]
[354819828,1740715846484,-1305.16,0.00071373,120]
[354819829,1740715846493,-500.0,0.00072851,120]
[354819830,1740715846503,-5477.12280462,0.0007439,5]
[354819831,1740715846511,-5000.0,0.00074507,30]
[354819832,1740715846520,-399.198651,0.00074507,10]
[354819833,1740715846530,-16557.26631381,0.00074541,30]
[354819835,1740715846539,-500.0,0.00075452,15]
[354819837,1740715846548,-500.0,0.00075452,14]
[354819839,1740715846557,-247.64631183,0.0007547,15]
[354819841,1740715846566,-432.41,0.000765,30]
[354819843,1740715846575,-500.0,0.00076712,120]
[354819845,1740715846584,-1305.16,0.00076853,120]
[354819848,1740715846593,-50000.0,0.00079,30]
[354819850,1740715846603,-666.0,0.00079123,120]
[354819852,1740715846612,-1282.95,0.00079592,120]
[354819854,1740715846621,-1000.0,0.00079592,2]
[354819856,1740715846630,-500.0,0.00079592,120]
[354819857,1740715846639,-541.56,0.00079592,120]
[354819859,1740715846648,-500.0,0.00079592,120]
[354819861,1740715846657,-500.0,0.00079592,120]
[354819863,1740715846666,-500.0,0.00079592,120]
[354819865,1740715846675,-962.02,0.00079592,120]
[354819867,1740715846684,-1354.13,0.00079592,120]
[354819869,1740715846694,-500.0,0.00079592,120]
[354819871,1740715846704,-500.0,0.00079592,120]
[354819873,1740715846713,-500.0,0.00079592,2]
[354819876,1740715846723,-1082.83,0.00079592,120]
[354819878,1740715846733,-500.0,0.00079592,120]
[354819880,1740715846742,-500.0,0.00079592,120]
[354819882,1740715846751,-500.0,0.00079593,120]
[354819884,1740715846761,-500.0,0.00079593,120]
[354819886,1740715846770,-153.07,0.00079593,120]
[354819888,1740715846779,-500.0,0.00079593,120]
[354819890,1740715846788,-500.0,0.00079593,120]
[354819892,1740715846797,-500.0,0.00079593,120]
[354819894,1740715846807,-500.0,0.00079593,120]
[354819896,1740715846816,-682.69,0.00079593,120]
[354819898,1740715846825,-500.0,0.00079593,120]
[354819900,1740715846834,-500.0,0.00079593,120]
[354819902,1740715846843,-500.0,0.00079593,120]
[354819904,1740715846852,-500.0,0.00079593,120]
[354819906,1740715846861,-672.77,0.00079593,120]
[354819908,1740715846871,-500.0,0.00079593,120]
[354819910,1740715846880,-500.0,0.00079593,120]
[354819912,1740715846889,-500.0,0.00079593,120]
[354819914,1740715846898,-500.0,0.00079593,120]
[354819916,1740715846907,-500.0,0.00079593,120]
[354819918,1740715846916,-500.0,0.00079593,120]
[354819920,1740715846925,-379.07733867,0.00079593,120]
[354819922,1740715846934,-596.14,0.00079593,120]
[354819924,1740715846944,-500.0,0.00079593,120]
[354819926,1740715846954,-500.0,0.00079593,120]
[354819928,1740715846963,-500.0,0.00079593,120]
[354819930,1740715846973,-500.0,0.00079593,120]
[354819932,1740715846985,-500.0,0.00079593,120]
[354819934,1740715846994,-500.0,0.00079593,120]
[354819936,1740715847003,-500.0,0.00079593,120]
[354819938,1740715847013,-500.0,0.00079593,120]
[354819940,1740715847022,-500.0,0.00079593,120]
[354819942,1740715847031,-500.0,0.00079593,120]
[354819944,1740715847040,-500.0,0.00079593,120]
[354819946,1740715847049,-500.0,0.00079593,120]
[354819948,1740715847058,-500.0,0.00079593,120]
[354819950,1740715847067,-500.0,0.00079593,120]
[354819952,1740715847076,-592.37,0.00079593,120]
[354819954,1740715847086,-500.0,0.00079593,120]
[354819956,1740715847095,-500.0,0.00079593,120]
[354819958,1740715847104,-500.0,0.00079593,120]
[354819960,1740715847113,-500.0,0.00079593,120]
[354819962,1740715847123,-500.0,0.00079593,120]
[354819964,1740715847131,-500.0,0.00079593,120]
[354819966,1740715847141,-500.0,0.00079593,120]
[354819968,1740715847150,-500.0,0.00079593,120]
[354819970,1740715847159,-500.0,0.00079593,120]
[354819972,1740715847168,-500.0,0.00079593,120]
[354819974,1740715847178,-729.78,0.00079593,120]
[354819976,1740715847187,-500.0,0.00079593,120]
[354819978,1740715847196,-500.0,0.00079593,120]
[354819980,1740715847207,-500.0,0.00079593,120]
[354819982,1740715847215,-500.0,0.00079593,120]
[354819984,1740715847223,-500.0,0.00079593,120]
[354819986,1740715847233,-500.0,0.00079593,120]
[354819988,1740715847244,-500.0,0.00079593,120]
[354819989,1740715847253,-500.0,0.00079593,120]
[354819990,1740715847261,-500.0,0.00079593,120]
[354819991,1740715847270,-500.0,0.00079593,120]
[354819992,1740715847280,-500.0,0.00079593,120]
[354819993,1740715847288,-500.0,0.00079593,120]
[354819994,1740715847296,-611.81,0.00079593,120]
[354819995,1740715847305,-500.0,0.00079593,120]
[354819996,1740715847313,-500.0,0.00079593,120]
[354819997,1740715847322,-500.0,0.00079593,120]
[354819998,1740715847333,-693.39,0.00079593,120]
[354819999,1740715847342,-500.0,0.00079593,120]
[354820000,1740715847351,-503.98679353,0.00079593,120]
[354820001,1740715847360,-500.0,0.00079593,120]
[354820002,1740715847369,-500.0,0.00079593,120]
[354820003,1740715847379,-342.01377175,0.00079593,120]
[354820004,1740715847388,-500.0,0.00079593,120]
[354820005,1740715847397,-527.02,0.00079593,120]
[354820006,1740715847406,-540.34,0.00079593,120]
[354820007,1740715847416,-500.0,0.00079593,120]
[354820008,1740715847425,-500.0,0.00079593,120]
[354820009,1740715847435,-250.0,0.00079593,120]
[354820010,1740715847445,-500.0,0.00079593,120]
[354820011,1740715847455,-500.0,0.00079593,120]
[354820012,1740715847465,-528.97,0.00079593,120]
[354820013,1740715847475,-500.0,0.00079593,120]
[354820014,1740715847485,-3348.76,0.00079593,120]
[354820015,1740715847495,-505.39992665,0.00079593,120]
[354820016,1740715847505,-500.0,0.00079593,120]
[354820017,1740715847515,-500.0,0.00079593,120]
[354820018,1740715847524,-500.0,0.00079593,120]
[354820019,1740715847534,-500.0,0.00079593,120]
[354820020,1740715847543,-500.0,0.00079593,120]
[354820021,1740715847552,-500.0,0.00079593,120]
[354820022,1740715847562,-500.0,0.00079593,120]
[354820023,1740715847571,-500.0,0.00079593,120]
[354820024,1740715847581,-500.0,0.00079593,120]
[354820025,1740715847591,-500.0,0.00079593,120]
[354820026,1740715847600,-500.0,0.00079593,120]
[354820027,1740715847609,-1331.92,0.00079593,120]
[354820028,1740715847619,-500.0,0.00079593,120]
[354820029,1740715847628,-500.0,0.00079593,120]
[354820030,1740715847637,-500.0,0.00079593,120]
[354820031,1740715847646,-500.0,0.00079593,120]
[354820032,1740715847655,-500.0,0.00079593,120]
[354820033,1740715847665,-5275.22,0.00079593,120]
[354820034,1740715847674,-618.62,0.00079593,120]
[354820035,1740715847683,-500.0,0.00079593,120]
[354820036,1740715847692,-529.35,0.00079593,120]
[354820037,1740715847817,-500.0,0.00079593,120]
[354820038,1740715847827,-500.0,0.00079593,120]
[354820039,1740715847837,-500.0,0.00079593,120]
[354820040,1740715847846,-500.0,0.00079593,120]
[354820041,1740715847856,-500.0,0.00079593,120]
[354820042,1740715847865,-666.05,0.00079593,120]
[354820043,1740715847874,-500.0,0.00079593,120]
[354820044,1740715847883,-500.0,0.00079593,120]
[354820045,1740715847892,-500.0,0.00079593,120]
[354820046,1740715847902,-500.0,0.00079593,120]
[354820047,1740715847911,-1682.97,0.00079593,120]
[354820048,1740715847920,-500.0,0.00079593,120]
[354820049,1740715847930,-500.0,0.00079593,120]
[354820050,1740715847939,-500.0,0.00079593,120]
[354820051,1740715847948,-500.0,0.00079593,45]
[354820052,1740715847960,-799.8,0.00079593,120]
[354820053,1740715847969,-500.0,0.00079593,120]
[354820054,1740715847978,-500.0,0.00079593,120]
[354820055,1740715847987,-2828.88,0.00079593,120]
[354820056,1740715847996,-500.0,0.00079593,120]
[354820057,1740715848006,-500.0,0.00079593,30]
[354820058,1740715848015,-500.0,0.00079593,120]
[354820059,1740715848024,-408.12831769,0.00079593,120]
[354820060,1740715848034,-600.86,0.00079593,120]
[354820061,1740715848044,-500.0,0.00079593,120]
[354820062,1740715848053,-500.0,0.00079593,120]
[354820063,1740715848063,-500.0,0.00079593,120]
[354820064,1740715848072,-500.0,0.00079593,120]
[354820065,1740715848081,-500.0,0.00079593,120]
[354820066,1740715848091,-3507.67,0.00079593,120]
[354820067,1740715848100,-363.513276,0.00079593,120]
[354820068,1740715848109,-500.0,0.00079593,120]
[354820069,1740715848119,-500.0,0.00079593,120]
[354820070,1740715848128,-500.0,0.00079593,120]
[354820071,1740715848137,-500.0,0.00079593,120]
[354820072,1740715848147,-500.0,0.00079593,120]
[354820073,1740715848157,-500.0,0.00079593,120]
[354820074,1740715848166,-2105.87,0.00079593,120]
[354820075,1740715848176,-500.0,0.00079593,120]
[354820076,1740715848186,-500.0,0.00079593,120]
[354820077,1740715848195,-500.0,0.00079593,120]
[354820078,1740715848207,-500.0,0.00079593,120]
[354820079,1740715848216,-500.0,0.00079593,120]
[354820080,1740715848226,-500.0,0.00079593,120]
[354820081,1740715848237,-151.45045962,0.00079593,120]
[354820082,1740715848247,-500.0,0.00079593,120]
[354820083,1740715848256,-500.0,0.00079593,120]
[354820084,1740715848266,-2364.65,0.00079593,120]
[354820085,1740715848275,-500.0,0.00079593,120]
[354820086,1740715848284,-7036.36,0.00079593,120]
[354820087,1740715848294,-500.0,0.00079593,120]
[354820088,1740715848303,-500.0,0.00079593,120]
[354820089,1740715848312,-500.0,0.00079593,120]
[354820090,1740715848323,-500.0,0.00079593,120]
[354820091,1740715848334,-780.49,0.00079593,120]
[354820092,1740715848343,-500.0,0.00079593,120]
[354820093,1740715848353,-516.79,0.00079593,120]
[354820094,1740715848363,-500.0,0.00079593,120]
[354820095,1740715848373,-513.08897261,0.00079593,120]
[354820096,1740715848383,-500.0,0.00079593,120]
[354820097,1740715848392,-500.0,0.00079593,120]
[354820098,1740715848402,-1811.74,0.00079593,120]
[354820099,1740715848412,-500.0,0.00079593,120]
[354820100,1740715848421,-51539.18,0.00079593,7]
[354820101,1740715848431,-500.0,0.00079593,120]
[354820102,1740715848440,-500.0,0.00079593,120]
[354820103,1740715848450,-500.0,0.00079593,120]
[354820104,1740715848461,-500.0,0.00079593,120]
[354820105,1740715848470,-500.0,0.00079593,120]
[354820106,1740715848479,-500.0,0.00079593,120]
[354820107,1740715848488,-500.0,0.00079593,120]
[354820108,1740715848497,-500.0,0.00079593,120]
[354820109,1740715848508,-500.0,0.00079593,120]
[354820110,1740715848517,-500.0,0.00079593,120]
[354820111,1740715848527,-500.0,0.00079593,120]
[354820112,1740715848536,-1251.38,0.00079593,120]
[354820113,1740715848545,-500.0,0.00079593,120]
[354820114,1740715848555,-1374.09,0.00079593,120]
[354820115,1740715848564,-500.0,0.00079593,120]
[354820116,1740715848573,-500.0,0.00079593,120]
[354820117,1740715848583,-500.0,0.00079593,120]
[354820118,1740715848592,-500.0,0.00079593,120]
[354820119,1740715848601,-2004.07,0.00079593,120]
[354820120,1740715848611,-500.0,0.00079593,120]
[354820121,1740715848620,-500.0,0.00079593,120]
[354820122,1740715848629,-500.0,0.00079593,120]
[354820123,1740715848638,-500.0,0.00079593,120]
[354820124,1740715848649,-500.0,0.00079593,120]
[354820125,1740715848660,-500.0,0.00079593,120]
[354820126,1740715848669,-500.0,0.00079593,120]
[354820127,1740715848678,-500.0,0.00079593,120]
[354820128,1740715848687,-930.77,0.00079593,120]
[354820129,1740715848697,-500.0,0.00079593,120]
[354820130,1740715848708,-500.0,0.00079593,120]
[354820131,1740715848717,-500.0,0.00079593,120]
[354820132,1740715848727,-500.0,0.00079593,120]
[354820133,1740715848736,-500.0,0.00079593,120]